bitfinex/quotes_SOLUSD_20250611
["timestamp","ask_amount","ask_price","bid_price","bid_amount"]
[1749624565026,10.24372776,165.49,165.44,10.24372776]
[1749624565226,10.24372776,165.49,165.45,18.64964886]
[1749624567406,10.24372776,165.48,165.45,18.64964886]
[1749624568011,26.0,165.46,165.45,18.64964886]
[1749624568413,26.0,165.46,165.45,10.24372776]
[1749624568704,26.0,165.47,165.45,10.24372776]
[1749624569298,15.60372776,165.51,165.46,10.24372776]
[1749624569511,15.60372776,165.51,165.43,18.64964886]
[1749624569512,5.36,165.51,165.47,10.24372776]
[1749624569716,5.36,165.51,165.48,10.24372776]
[1749624570095,26.0,165.49,165.48,28.89337662]
[1749624571619,5.36,165.51,165.48,28.89337662]
[1749624571822,5.36,165.51,165.5,28.89337662]
[1749624572010,26.0,165.53,165.51,18.64964886]
[1749624572206,26.0,165.53,165.51,28.89337662]
[1749624573207,11.9409,165.59,165.51,28.89337662]
[1749624573509,11.9409,165.59,165.48,24.78]
[1749624573510,26.0,165.57,165.53,28.89337662]
[1749624573714,10.24372776,165.57,165.53,28.89337662]
[1749624574225,26.0,165.56,165.53,28.89337662]
[1749624574530,11.9409,165.59,165.46,100.63303611]
[1749624574531,15.60372776,165.59,165.55,28.89337662]
[1749624574720,5.36,165.59,165.55,28.89337662]
[1749624575214,5.36,165.59,165.51,24.78]
[1749624575215,5.36,165.59,165.57,28.89337662]
[1749624578213,5.36,165.59,165.58,28.89337662]
[1749624578613,26.0,165.64,165.59,18.64964886]
[1749624578829,26.0,165.64,165.6,10.24372776]
[1749624579009,26.0,165.64,165.59,28.89337662]
[1749624579010,36.24372776,165.64,165.59,28.89337662]
[1749624582723,26.0,165.64,165.6,10.24372776]
[1749624582932,10.24372776,165.65,165.6,10.24372776]
[1749624585025,26.0,165.64,165.61,10.24372776]
[1749624585224,11.5079,165.67,165.63,10.24372776]
[1749624585416,5.36,165.67,165.63,10.24372776]
[1749624585615,5.36,165.67,165.64,10.24372776]
[1749624585937,5.36,165.67,165.61,18.64964886]
[1749624586235,10.24372776,165.65,165.61,18.64964886]
[1749624586432,10.24372776,165.65,165.6,10.24372776]
[1749624586639,10.24372776,165.64,165.59,28.89337662]
[1749624587013,10.24372776,165.63,165.59,28.89337662]
[1749624587418,10.24372776,165.62,165.58,18.64964886]
[1749624587618,10.24372776,165.61,165.58,18.64964886]
[1749624588038,10.24372776,165.61,165.57,18.64964886]
[1749624588238,1.6112,165.66,165.57,18.64964886]
[1749624588435,10.24372776,165.61,165.57,18.64964886]
[1749624590127,10.24372776,165.6,165.57,18.64964886]
[1749624590949,10.24372776,165.58,165.55,18.64964886]
[1749624591157,10.24372776,165.57,165.53,18.64964886]
[1749624592145,10.24372776,165.58,165.53,18.64964886]
[1749624592349,26.0,165.61,165.53,18.64964886]
[1749624592350,10.24372776,165.56,165.53,18.64964886]
[1749624593072,10.24372776,165.57,165.53,18.64964886]
[1749624598195,10.24372776,165.55,165.52,18.64964886]
[1749624598471,10.24372776,165.54,165.52,18.64964886]
[1749624599052,10.24372776,165.54,165.49,11.90772776]
[1749624599280,10.24372776,165.53,165.49,1.664]
[1749624599459,10.24372776,165.51,165.47,18.64964886]
[1749624599658,10.24372776,165.51,165.46,18.64964886]
[1749624599858,10.24372776,165.51,165.46,28.89337662]
[1749624600065,37.6801,165.57,165.46,18.64964886]
[1749624600066,10.24372776,165.5,165.46,18.64964886]
[1749624600287,37.6801,165.57,165.46,28.89337662]
[1749624600288,10.24372776,165.51,165.46,28.89337662]
[1749624600586,10.24372776,165.52,165.47,10.24372776]
[1749624601585,10.24372776,165.51,165.47,10.24372776]
[1749624601793,10.24372776,165.52,165.47,10.24372776]
[1749624601962,10.24372776,165.53,165.49,18.64964886]
[1749624606892,146.7,165.59,165.52,10.24372776]
[1749624607079,6.6037,165.62,165.52,10.24372776]
[1749624607080,36.24372776,165.6,165.52,10.24372776]
[1749624607290,26.0,165.6,165.5,18.64964886]
[1749624607478,10.24372776,165.57,165.52,28.89337662]
[1749624607676,26.0,165.6,165.52,28.89337662]
[1749624607873,26.0,165.6,165.54,18.64964886]
[1749624608082,10.24372776,165.57,165.54,18.64964886]
[1749624608593,5.36,165.61,165.54,10.24372776]
[1749624608594,10.24372776,165.59,165.54,10.24372776]
[1749624608790,5.36,165.61,165.56,10.24372776]
[1749624608967,10.24372776,165.6,165.56,10.24372776]
[1749624609271,15.60372776,165.61,165.56,10.24372776]
[1749624609475,5.36,165.61,165.58,18.64964886]
[1749624611236,5.36,165.61,165.54,18.64964886]
[1749624611382,5.36,165.61,165.58,18.64964886]
[1749624612662,5.36,165.61,165.58,10.24372776]
[1749624612861,5.36,165.61,165.59,10.24372776]
[1749624613504,5.36,165.61,165.6,18.64964886]
[1749624615198,31.36,165.61,165.6,18.64964886]
[1749624616272,31.36,165.61,165.56,24.76]
[1749624616496,41.60372776,165.61,165.58,18.64964886]
[1749624616976,10.24372776,165.6,165.56,10.24372776]
[1749624617171,10.24372776,165.6,165.57,18.64964886]
[1749624617390,26.0,165.58,165.56,18.64964886]
[1749624619801,10.24372776,165.6,165.56,10.24372776]
[1749624620006,15.60372776,165.61,165.56,10.24372776]
[1749624624512,31.36,165.61,165.53,18.64964886]
[1749624624678,10.24372776,165.57,165.53,18.64964886]
[1749624625492,10.24372776,165.58,165.53,28.89337662]
[1749624625714,10.24372776,165.59,165.55,28.89337662]
[1749624626393,10.24372776,165.59,165.52,18.64964886]
[1749624626701,10.24372776,165.59,165.55,10.24372776]
[1749624627208,10.24372776,165.58,165.55,18.64964886]
[1749624627600,10.24372776,165.56,165.53,18.64964886]
[1749624627979,10.24372776,165.6,165.51,1.6517]
[1749624627980,10.24372776,165.55,165.51,1.6517]
[1749624628176,10.24372776,165.54,165.5,18.64964886]
[1749624631681,26.0,165.57,165.5,18.64964886]
[1749624631884,10.24372776,165.54,165.5,18.64964886]
[1749624633611,10.24372776,165.56,165.52,18.64964886]
[1749624633782,5.36,165.61,165.55,18.64964886]
[1749624633983,11.5981,165.64,165.57,28.89337662]
[1749624634206,26.0,165.6,165.59,18.64964886]
[1749624634414,10.24372776,165.63,165.59,18.64964886]
[1749624634707,15.58372776,165.64,165.59,10.24372776]
[1749624634896,10.24372776,165.63,165.59,18.64964886]
[1749624635210,26.0,165.63,165.59,18.64964886]
[1749624635406,36.24372776,165.63,165.59,18.64964886]
[1749624635704,10.24372776,165.63,165.59,18.64964886]
[1749624635882,10.24372776,165.63,165.53,5.62224693]
[1749624635883,10.24372776,165.61,165.56,10.24372776]
[1749624636084,10.24372776,165.6,165.57,18.64964886]
[1749624636307,36.24372776,165.6,165.56,18.64964886]
[1749624636504,36.24372776,165.6,165.54,10.24372776]
[1749624636505,26.0,165.57,165.54,10.24372776]
[1749624636699,26.0,165.57,165.53,18.64964886]
[1749624636700,26.0,165.55,165.53,18.64964886]
[1749624636890,10.24372776,165.57,165.53,18.64964886]
[1749624637091,10.24372776,165.56,165.53,18.64964886]
[1749624638911,36.24372776,165.57,165.53,18.64964886]
[1749624645010,5.34,165.64,165.53,28.89337662]
[1749624645011,36.24372776,165.58,165.53,28.89337662]
[1749624645393,10.24372776,165.62,165.57,10.24372776]
[1749624645596,5.34,165.64,165.58,28.89337662]
[1749624645597,10.24372776,165.63,165.58,28.89337662]
[1749624646628,10.24372776,165.63,165.6,18.64964886]
[1749624646801,5.34,165.64,165.6,18.64964886]
[1749624646995,15.58372776,165.64,165.6,18.64964886]
[1749624650116,10.24372776,165.64,165.6,18.64964886]
[1749624651111,10.24372776,165.63,165.58,10.24372776]
[1749624651510,26.0,165.66,165.6,28.89337662]
[1749624651722,26.0,165.66,165.62,18.64964886]
[1749624651918,5.34,165.68,165.62,18.64964886]
[1749624652117,15.58372776,165.68,165.64,18.64964886]
[1749624652322,10.24372776,165.69,165.64,10.24372776]
[1749624652492,10.24372776,165.65,165.61,10.24372776]
[1749624652697,10.24372776,165.67,165.63,18.64964886]
[1749624652898,26.0,165.69,165.63,28.89337662]
[1749624653103,10.24372776,165.69,165.65,18.64964886]
[1749624654431,10.24372776,165.68,165.65,18.64964886]
[1749624654828,10.24372776,165.69,165.65,18.64964886]
[1749624655793,31.34,165.72,165.65,10.24372776]
[1749624655996,10.24372776,165.7,165.65,10.24372776]
[1749624656718,31.34,165.72,165.65,10.24372776]
[1749624656719,10.24372776,165.69,165.65,10.24372776]
[1749624656920,10.24372776,165.69,165.63,18.64964886]
[1749624657130,10.24372776,165.69,165.65,18.64964886]
[1749624658712,10.24372776,165.69,165.65,10.24372776]
[1749624659501,31.34,165.72,165.66,18.64964886]
[1749624659708,10.24372776,165.71,165.66,28.89337662]
[1749624659902,31.34,165.72,165.66,28.89337662]
[1749624660124,10.24372776,165.71,165.66,28.89337662]
[1749624660909,31.34,165.72,165.68,18.64964886]
[1749624661214,41.58372776,165.72,165.68,18.64964886]
[1749624661413,15.58372776,165.72,165.68,18.64964886]
[1749624662510,10.24372776,165.7,165.65,18.64964886]
[1749624662714,10.24372776,165.7,165.65,28.89337662]
[1749624663099,10.24372776,165.68,165.65,18.64964886]
[1749624663523,10.24372776,165.67,165.62,42.71412776]
[1749624663754,31.34,165.72,165.63,28.89337662]
[1749624663755,10.24372776,165.68,165.63,28.89337662]
[1749624664034,41.25002776,165.76,165.67,10.24372776]
[1749624664035,6.2663,165.76,165.67,10.24372776]
[1749624664213,10.24372776,165.75,165.7,28.89337662]
[1749624664612,10.24372776,165.74,165.7,18.64964886]
[1749624664815,15.58372776,165.76,165.71,10.24372776]
[1749624665017,5.34,165.76,165.74,18.64964886]
[1749624666005,5.34,165.76,165.73,28.89337662]
[1749624666929,5.34,165.76,165.74,10.24372776]
[1749624667711,5.34,165.76,165.73,10.24372776]
[1749624668110,5.34,165.76,165.75,28.89337662]
[1749624669610,10.24372776,165.82,165.76,18.64964886]
[1749624669810,10.24372776,165.82,165.78,18.64964886]
[1749624670017,10.24372776,165.83,165.78,28.89337662]
[1749624670534,10.24372776,165.81,165.78,18.64964886]
[1749624671313,10.24372776,165.84,165.75,28.89337662]
[1749624671638,10.24372776,165.81,165.76,10.24372776]
[1749624673937,10.24372776,165.8,165.75,28.89337662]
[1749624675521,10.24372776,165.84,165.75,28.89337662]
[1749624675717,10.24372776,165.8,165.75,28.89337662]
[1749624676329,10.24372776,165.8,165.75,18.64964886]
[1749624676526,10.24372776,165.8,165.75,28.89337662]
[1749624677552,5.34,165.85,165.77,18.64964886]
[1749624677720,10.24372776,165.81,165.77,18.64964886]
[1749624678348,10.24372776,165.8,165.77,18.64964886]
[1749624678525,10.24372776,165.81,165.77,18.64964886]
[1749624679127,10.24372776,165.82,165.77,28.89337662]
[1749624680845,10.24372776,165.82,165.79,18.64964886]
[1749624681058,10.24372776,165.83,165.79,18.64964886]
[1749624681219,10.24372776,165.82,165.77,10.24372776]
[1749624681424,5.34,165.85,165.77,18.64964886]
[1749624681425,10.24372776,165.8,165.77,18.64964886]
[1749624681949,10.24372776,165.81,165.77,18.64964886]
[1749624682450,10.24372776,165.82,165.77,28.89337662]
[1749624684426,5.34,165.85,165.77,28.89337662]
[1749624684626,10.24372776,165.82,165.79,18.64964886]
[1749624684842,10.24372776,165.83,165.79,18.64964886]
[1749624685047,15.58372776,165.85,165.81,18.64964886]
[1749624685229,15.58372776,165.85,165.81,28.89337662]
[1749624687436,5.34,165.85,165.83,18.64964886]
[1749624687628,15.58372776,165.85,165.83,18.64964886]
[1749624687833,10.24372776,165.84,165.81,1.5912]
[1749624688137,5.34,165.85,165.81,1.5912]
[1749624688445,15.58372776,165.85,165.81,11.83492776]
[1749624688846,5.34,165.85,165.81,11.83492776]
[1749624689043,15.58372776,165.85,165.81,1.5912]
[1749624689952,15.58372776,165.85,165.81,11.83492776]
[1749624690145,5.34,165.85,165.81,11.83492776]
[1749624691330,15.58372776,165.85,165.8,28.89337662]
[1749624691558,10.24372776,165.84,165.8,18.64964886]
[1749624691726,5.34,165.85,165.8,28.89337662]
[1749624691727,15.58372776,165.85,165.8,28.89337662]
[1749624691927,15.58372776,165.85,165.8,10.24372776]
[1749624692959,10.24372776,165.83,165.77,7.6758]
[1749624693139,10.24372776,165.78,165.74,18.64964886]
[1749624693338,10.24372776,165.77,165.74,18.64964886]
[1749624694554,26.0,165.81,165.74,18.64964886]
[1749624694933,10.24372776,165.84,165.74,18.64964886]
[1749624694934,36.24372776,165.84,165.75,10.24372776]
[1749624695133,10.24372776,165.8,165.75,10.24372776]
[1749624695360,10.24372776,165.84,165.74,18.64964886]
[1749624695361,10.24372776,165.78,165.74,18.64964886]
[1749624695653,10.24372776,165.77,165.74,18.64964886]
[1749624695853,10.24372776,165.78,165.74,18.64964886]
[1749624700836,10.24372776,165.77,165.74,18.64964886]
[1749624702457,10.24372776,165.77,165.72,10.24372776]
[1749624702643,5.34,165.85,165.75,10.24372776]
[1749624702846,10.24372776,165.77,165.76,18.64964886]
[1749624704367,26.0,165.83,165.76,18.64964886]
[1749624704672,10.24372776,165.77,165.74,18.64964886]
[1749624705040,26.0,165.83,165.74,18.64964886]
[1749624705245,10.24372776,165.77,165.74,18.64964886]
[1749624706453,10.24372776,165.76,165.71,54.89337662]
[1749624707463,10.24372776,165.75,165.71,44.64964886]
[1749624707655,6.4226,165.8,165.7,28.89337662]
[1749624707656,1.5403,165.79,165.7,28.89337662]
[1749624707849,10.24372776,165.75,165.7,28.89337662]
[1749624708363,1.5403,165.79,165.7,28.89337662]
[1749624708552,10.24372776,165.76,165.71,10.24372776]
[1749624710973,6.4226,165.8,165.71,10.24372776]
[1749624711144,10.24372776,165.76,165.71,10.24372776]
[1749624711754,10.24372776,165.77,165.73,18.64964886]
[1749624712066,10.24372776,165.76,165.73,18.64964886]
[1749624713146,10.24372776,165.77,165.73,18.64964886]
[1749624715272,6.4226,165.8,165.73,18.64964886]
[1749624715568,10.24372776,165.77,165.73,18.64964886]
[1749624715948,10.24372776,165.78,165.73,28.89337662]
[1749624716559,10.24372776,165.77,165.73,28.89337662]
[1749624718455,10.24372776,165.77,165.73,18.64964886]
[1749624720374,26.0,165.81,165.73,18.64964886]
[1749624720671,10.24372776,165.77,165.73,18.64964886]
[1749624721571,1.5731,165.83,165.73,28.89337662]
[1749624721764,10.24372776,165.79,165.75,18.64964886]
[1749624722273,10.24372776,165.78,165.73,28.89337662]
[1749624723468,10.24372776,165.78,165.73,18.64964886]
[1749624723809,10.24372776,165.78,165.73,28.89337662]
[1749624724152,16.80692776,165.84,165.77,18.64964886]
[1749624724153,6.5632,165.84,165.77,18.64964886]
[1749624724367,5.34,165.86,165.79,18.64964886]
[1749624724567,10.24372776,165.84,165.79,18.64964886]
[1749624724771,10.24372776,165.84,165.79,28.89337662]
[1749624724973,10.24372776,165.83,165.79,18.64964886]
[1749624725167,5.34,165.86,165.79,18.64964886]
[1749624725365,10.24372776,165.83,165.79,18.64964886]
[1749624728178,10.24372776,165.82,165.79,18.64964886]
[1749624728378,5.34,165.86,165.76,18.64964886]
[1749624728379,10.24372776,165.8,165.76,18.64964886]
[1749624730665,10.24372776,165.81,165.76,28.89337662]
[1749624731179,31.34,165.86,165.77,10.24372776]
[1749624731180,10.24372776,165.82,165.77,10.24372776]
[1749624731677,31.34,165.86,165.76,18.64964886]
[1749624731878,10.24372776,165.83,165.79,18.64964886]
[1749624732467,36.24372776,165.83,165.79,18.64964886]
[1749624734682,10.24372776,165.82,165.78,18.64964886]
[1749624738079,31.34,165.86,165.78,18.64964886]
[1749624738285,10.24372776,165.82,165.78,18.64964886]
[1749624739877,31.34,165.86,165.78,18.64964886]
[1749624740187,10.24372776,165.82,165.78,18.64964886]
[1749624741677,31.34,165.86,165.78,18.64964886]
[1749624741678,10.24372776,165.84,165.78,18.64964886]
[1749624741880,10.24372776,165.8,165.76,18.64964886]
[1749624742687,10.24372776,165.81,165.76,28.89337662]
[1749624743290,10.24372776,165.82,165.77,10.24372776]
[1749624743585,10.24372776,165.83,165.78,10.24372776]
[1749624743797,10.24372776,165.82,165.78,18.64964886]
[1749624745276,5.34,165.86,165.78,18.64964886]
[1749624745593,10.24372776,165.82,165.78,18.64964886]
[1749624748473,10.24372776,165.81,165.76,28.89337662]
[1749624748695,10.24372776,165.8,165.76,18.64964886]
[1749624748990,10.24372776,165.84,165.76,18.64964886]
[1749624748991,10.24372776,165.79,165.76,18.64964886]
[1749624749583,10.24372776,165.8,165.76,18.64964886]
[1749624749895,10.24372776,165.79,165.76,18.64964886]
[1749624750403,10.24372776,165.77,165.72,18.64964886]
[1749624750579,10.24372776,165.75,165.72,18.64964886]
[1749624750780,10.24372776,165.75,165.71,1.6009]
[1749624750992,10.24372776,165.73,165.7,26.0]
[1749624751490,10.24372776,165.73,165.71,18.64964886]
[1749624751890,10.24372776,165.73,165.69,18.64964886]
[1749624752191,10.24372776,165.72,165.69,18.64964886]
[1749624752593,10.24372776,165.72,165.68,18.64964886]
[1749624753174,10.24372776,165.7,165.68,18.64964886]
[1749624753393,10.24372776,165.69,165.66,18.64964886]
[1749624753697,10.24372776,165.69,165.64,10.24372776]
[1749624753698,10.24372776,165.68,165.64,18.64964886]
[1749624754291,10.24372776,165.68,165.64,28.89337662]
[1749624754496,1.5895,165.74,165.64,28.89337662]
[1749624754497,10.24372776,165.69,165.64,28.89337662]
[1749624755187,10.24372776,165.71,165.66,10.24372776]
[1749624755983,10.24372776,165.7,165.66,10.24372776]
[1749624756875,10.24372776,165.7,165.65,18.64964886]
[1749624757080,10.24372776,165.7,165.66,10.24372776]
[1749624758696,10.24372776,165.7,165.65,18.64964886]
[1749624758902,10.24372776,165.7,165.66,10.24372776]
[1749624759804,27.5895,165.74,165.66,10.24372776]
[1749624760004,10.24372776,165.7,165.65,18.64964886]
[1749624760299,10.24372776,165.7,165.65,28.89337662]
[1749624763103,10.24372776,165.7,165.65,54.89337662]
[1749624764599,10.24372776,165.69,165.65,44.64964886]
[1749624764795,10.24372776,165.68,165.65,18.64964886]
[1749624764994,10.24372776,165.66,165.63,18.64964886]
[1749624765300,10.24372776,165.64,165.6,18.64964886]
[1749624765499,10.24372776,165.63,165.6,18.64964886]
[1749624765884,10.24372776,165.64,165.6,18.64964886]
[1749624768988,16.60942776,165.68,165.6,18.64964886]
[1749624769195,10.24372776,165.64,165.6,18.64964886]
[1749624769494,16.60942776,165.68,165.6,18.64964886]
[1749624769495,10.24372776,165.63,165.6,18.64964886]
[1749624769695,10.24372776,165.62,165.6,18.64964886]
[1749624770484,16.60942776,165.68,165.6,18.64964886]
[1749624770909,10.24372776,165.64,165.6,18.64964886]
[1749624771408,6.3657,165.68,165.6,28.89337662]
[1749624771607,10.24372776,165.65,165.6,28.89337662]
[1749624771787,10.24372776,165.65,165.6,53.61337662]
[1749624772395,10.24372776,165.64,165.6,43.36964886]
[1749624775010,10.24372776,165.65,165.6,53.61337662]
[1749624775314,10.24372776,165.66,165.61,10.24372776]
[1749624775518,10.24372776,165.66,165.62,18.64964886]
[1749624775695,26.0,165.71,165.62,28.89337662]
[1749624775696,10.24372776,165.67,165.62,28.89337662]
[1749624775903,10.24372776,165.67,165.64,18.64964886]
[1749624776710,10.24372776,165.68,165.64,18.64964886]
[1749624777406,10.24372776,165.68,165.61,1.5313]
[1749624777407,10.24372776,165.65,165.61,18.64964886]
[1749624777600,10.24372776,165.64,165.61,18.64964886]
[1749624778603,10.24372776,165.63,165.61,18.64964886]
[1749624778907,10.24372776,165.68,165.6,18.64964886]
[1749624779113,10.24372776,165.64,165.6,18.64964886]
[1749624781314,10.24372776,165.65,165.6,28.89337662]
[1749624781620,10.24372776,165.67,165.63,18.64964886]
[1749624784710,26.0,165.71,165.67,18.64964886]
[1749624784711,10.24372776,165.71,165.67,18.64964886]
[1749624784906,10.24372776,165.72,165.67,28.89337662]
[1749624785412,10.24372776,165.71,165.67,18.64964886]
[1749624785611,10.24372776,165.71,165.66,28.89337662]
[1749624786016,10.24372776,165.7,165.66,18.64964886]
[1749624786406,10.24372776,165.71,165.66,28.89337662]
[1749624787303,10.24372776,165.7,165.66,18.64964886]
[1749624787510,10.24372776,165.68,165.66,18.64964886]
[1749624787704,10.24372776,165.68,165.64,18.64964886]
[1749624787906,10.24372776,165.69,165.64,28.89337662]
[1749624788917,10.24372776,165.68,165.64,18.64964886]
[1749624789119,10.24372776,165.67,165.64,18.64964886]
[1749624789415,10.24372776,165.66,165.62,18.64964886]
[1749624789620,10.24372776,165.65,165.62,18.64964886]
[1749624790009,10.24372776,165.7,165.64,28.89337662]
[1749624790217,10.24372776,165.7,165.66,18.64964886]
[1749624790413,26.0,165.71,165.66,18.64964886]
[1749624790722,10.24372776,165.7,165.66,18.64964886]
[1749624790936,10.24372776,165.7,165.66,10.24372776]
[1749624791099,36.24372776,165.71,165.66,10.24372776]
[1749624791522,10.24372776,165.72,165.68,18.64964886]
[1749624791728,146.7,165.8,165.69,10.24372776]
[1749624791729,11.8679,165.78,165.69,10.24372776]
[1749624792027,10.24372776,165.75,165.71,18.64964886]
[1749624792203,36.24372776,165.75,165.71,18.64964886]
[1749624792520,36.24372776,165.75,165.71,10.24372776]
[1749624792521,26.0,165.75,165.71,10.24372776]
[1749624792705,10.24372776,165.76,165.71,10.24372776]
[1749624792901,36.24372776,165.76,165.71,10.24372776]
[1749624793306,26.0,165.76,165.73,18.64964886]
[1749624793529,15.58372776,165.78,165.73,28.89337662]
[1749624798633,15.58372776,165.78,165.73,18.64964886]
[1749624798869,15.58372776,165.78,165.73,28.89337662]
[1749624799743,10.24372776,165.83,165.78,18.64964886]
[1749624799916,10.24372776,165.83,165.78,10.24372776]
[1749624800121,10.24372776,165.83,165.78,28.89337662]
[1749624800514,5.32,165.86,165.78,28.89337662]
[1749624800712,10.24372776,165.83,165.78,28.89337662]
[1749624801106,10.24372776,165.79,165.74,1.6476]
[1749624801423,10.24372776,165.84,165.75,18.64964886]
[1749624801424,10.24372776,165.78,165.75,18.64964886]
[1749624802108,10.24372776,165.79,165.75,18.64964886]
[1749624803328,5.32,165.86,165.76,10.24372776]
[1749624803630,10.24372776,165.82,165.77,28.89337662]
[1749624804010,10.24372776,165.81,165.77,18.64964886]
[1749624806010,10.24372776,165.8,165.77,18.64964886]
[1749624806829,10.24372776,165.78,165.77,18.64964886]
[1749624807130,10.24372776,165.78,165.74,26.0]
[1749624807131,10.24372776,165.78,165.74,18.64964886]
[1749624807331,10.24372776,165.75,165.71,18.64964886]
[1749624807925,10.24372776,165.73,165.68,10.24372776]
[1749624808117,10.24372776,165.72,165.68,36.24372776]
[1749624808318,10.24372776,165.73,165.7,18.64964886]
[1749624808713,26.0,165.8,165.7,18.64964886]
[1749624808919,10.24372776,165.76,165.71,10.24372776]
[1749624809308,10.24372776,165.75,165.7,10.24372776]
[1749624809629,10.24372776,165.73,165.69,18.64964886]
[1749624810736,10.24372776,165.72,165.69,18.64964886]
[1749624812737,10.24372776,165.76,165.69,18.64964886]
[1749624813122,10.24372776,165.72,165.69,18.64964886]
[1749624814243,26.0,165.8,165.69,18.64964886]
[1749624814244,10.24372776,165.73,165.69,18.64964886]
[1749624817239,10.24372776,165.7,165.69,18.64964886]
[1749624817415,10.24372776,165.76,165.67,18.64964886]
[1749624817620,10.24372776,165.7,165.67,18.64964886]
[1749624820917,10.24372776,165.68,165.67,18.64964886]
[1749624821122,10.24372776,165.71,165.66,10.24372776]
[1749624822120,10.24372776,165.76,165.67,10.24372776]
[1749624822453,10.24372776,165.72,165.67,28.89337662]
[1749624822659,10.24372776,165.75,165.7,10.24372776]
[1749624824727,10.24372776,165.75,165.72,18.64964886]
[1749624825545,32.8952,165.79,165.72,18.64964886]
[1749624825747,10.24372776,165.75,165.72,18.64964886]
[1749624826840,10.24372776,165.76,165.72,18.64964886]
[1749624827238,10.24372776,165.79,165.74,28.89337662]
[1749624828052,10.24372776,165.8,165.74,28.89337662]
[1749624828221,10.24372776,165.8,165.74,18.64964886]
[1749624828422,10.24372776,165.8,165.76,18.64964886]
[1749624829523,10.24372776,165.79,165.74,28.89337662]
[1749624830135,10.24372776,165.79,165.75,18.64964886]
[1749624830649,10.24372776,165.77,165.75,18.64964886]
[1749624831029,10.24372776,165.78,165.75,18.64964886]
[1749624834434,5.32,165.83,165.75,18.64964886]
[1749624834435,10.24372776,165.77,165.75,18.64964886]
[1749624835650,10.24372776,165.78,165.75,18.64964886]
[1749624837146,10.24372776,165.79,165.75,18.64964886]
[1749624837351,10.24372776,165.78,165.75,18.64964886]
[1749624839355,10.24372776,165.77,165.73,24.7]
[1749624839553,10.24372776,165.76,165.74,18.64964886]
[1749624839756,10.24372776,165.77,165.74,18.64964886]
[1749624840955,26.0,165.8,165.74,18.64964886]
[1749624841260,10.24372776,165.77,165.74,18.64964886]
[1749624844561,10.24372776,165.77,165.72,18.64964886]
[1749624844752,10.24372776,165.77,165.74,18.64964886]
[1749624846137,10.24372776,165.77,165.72,28.89337662]
[1749624847456,26.0,165.82,165.72,28.89337662]
[1749624847760,10.24372776,165.77,165.72,28.89337662]
[1749624853262,10.24372776,165.78,165.73,10.24372776]
[1749624853557,26.0,165.8,165.72,18.64964886]
[1749624853558,10.24372776,165.79,165.74,10.24372776]
[1749624855269,10.24372776,165.79,165.75,18.64964886]
[1749624855865,10.24372776,165.8,165.75,18.64964886]
[1749624856353,10.24372776,165.79,165.75,18.64964886]
[1749624858958,10.24372776,165.79,165.72,18.64964886]
[1749624859164,10.24372776,165.79,165.75,18.64964886]
[1749624859966,31.32,165.83,165.75,28.89337662]
[1749624859967,10.24372776,165.8,165.75,28.89337662]
[1749624862945,10.24372776,165.8,165.75,18.64964886]
[1749624864857,10.24372776,165.79,165.75,18.64964886]
[1749624867744,10.24372776,165.8,165.75,18.64964886]
[1749624868353,10.24372776,165.8,165.75,28.89337662]
[1749624869177,15.56372776,165.83,165.77,28.89337662]
[1749624869362,15.56372776,165.83,165.79,18.64964886]
[1749624869363,5.32,165.83,165.79,18.64964886]
[1749624869561,5.32,165.83,165.81,18.64964886]
[1749624870279,5.32,165.83,165.79,10.24372776]
[1749624870451,5.32,165.83,165.79,28.89337662]
[1749624871552,5.32,165.83,165.81,18.64964886]
[1749624871751,5.32,165.83,165.79,10.24372776]
[1749624874187,26.0,165.89,165.79,10.24372776]
[1749624874362,10.24372776,165.85,165.81,18.64964886]
[1749624874756,10.24372776,165.85,165.78,18.64964886]
[1749624874964,10.24372776,165.85,165.81,18.64964886]
[1749624875570,10.24372776,165.84,165.78,18.64964886]
[1749624875771,10.24372776,165.82,165.78,18.64964886]
[1749624875973,10.24372776,165.8,165.76,26.0]
[1749624876175,10.24372776,165.81,165.77,18.64964886]
[1749624877887,18.70167653,165.9,165.75,18.64964886]
[1749624877888,10.24372776,165.79,165.75,18.64964886]
[1749624878579,10.24372776,165.8,165.75,28.89337662]
[1749624879084,15.56372776,165.84,165.74,18.64964886]
[1749624879295,10.24372776,165.81,165.77,18.64964886]
[1749624879496,10.24372776,165.82,165.77,28.89337662]
[1749624879665,5.32,165.84,165.79,18.64964886]
[1749624879666,10.24372776,165.83,165.79,18.64964886]
[1749624880597,10.24372776,165.83,165.78,10.24372776]
[1749624880598,10.24372776,165.82,165.77,28.89337662]
[1749624881968,5.32,165.84,165.81,18.64964886]
[1749624882866,15.56372776,165.84,165.79,10.24372776]
[1749624883269,15.56372776,165.84,165.8,18.64964886]